Cogmind - Beta 17 @@@ ROGUE MODE // 2026.08.16 @ 13:57:38 Player: MiniMilk Result: Destroyed by Y-45 Defender with Beam Rifle Performance ------------- Evolutions (1) 500 Regions Visited (3) 600 Robots Destroyed (32) 160 Value Destroyed (657) 657 Prototype IDs (1) 20 Alien Tech Used (0) 0 Bonus (-19) -19 TOTAL SCORE: 1918 Bonus ------- Follower Combat Kills 21 Friendly Fire -40 Cogmind --------- Core Integrity 0/400 Matter 300/300 Energy 100/100 System Corruption 0% Temperature Cool (27) Movement Core (1350) Ox26 Location -9/Materials Parts ------- > --- POWER (1) -------- (None) > --- PROPULSION (2) --- (None) > --- UTILITY (4) ------ Huge Storage Unit > --- WEAPON (2) ------- (None) > --- INVENTORY (25) --- Ion Engine Flight Unit Flight Unit Flight Unit Flight Unit Flight Unit Flight Unit Medium Storage Unit Medium Storage Unit High-capacity Matter Pod (185) Structural Scanner ECM Suite Hardened Light Armor Plating Hardened Light Armor Plating Light Assault Rifle Grenade Launcher Peak State ------------ > --- POWER ------------ Light Nuclear Core > --- PROPULSION ------- Light Treads Light Treads > --- UTILITY ---------- Huge Storage Unit Experimental Sensor Array Hardened Light Armor Plating Hacking Suite > --- WEAPON ----------- Assault Rifle > --- INVENTORY -------- Ion Engine Flight Unit Flight Unit Flight Unit Flight Unit Medium Storage Unit Medium Storage Unit High-capacity Matter Pod Structural Scanner Light Assault Rifle Grenade Launcher [Rating: 22] Favorites ----------- Power Ion Engine Engine Ion Engine Power Core Light Nuclear Core Propulsion Light Treads Treads Light Treads Utility Medium Storage Unit Device Structural Scanner Storage Medium Storage Unit Processor Signal Interpreter Hackware Hacking Suite Protection Hardened Light Armor Plating Weapon Assault Rifle Energy Gun Small Laser Ballistic Gun Assault Rifle Launcher Grenade Launcher Build | -11 -10 -10 -9 ------- Run | Yrd Mat Min Mat Slots Evolved 2 | . . . 2 Power . | . . . . Propulsion . | . . . . Utility 2 | . . . 2 Weapon . | . . . . Parts Attached 27 | 7 14 3 3 Power 5 | 1 2 1 1 Engine 4 | 1 2 . 1 Core 1 | . . 1 . Reactor . | . . . . Propulsion 5 | 2 3 . . Treads 5 | 2 3 . . Leg . | . . . . Wheel . | . . . . Hover . | . . . . Flight . | . . . . Utility 8 | 1 3 2 2 Device 2 | . 1 1 . Storage 3 | 1 1 1 . Processor 1 | . 1 . . Hackware 1 | . . . 1 Protection 1 | . . . 1 Artifact . | . . . . Weapon 9 | 3 6 . . Energy Gun 3 | 3 . . . Energy Cannon . | . . . . Ballistic Gun 4 | . 4 . . Ballistic Cannon . | . . . . Launcher 2 | . 2 . . Special Weapon . | . . . . Impact Weapon . | . . . . Slashing Weapon . | . . . . Piercing Weapon . | . . . . Special Melee Weapon . | . . . . Unidentified Prototypes 1 | . . 1 . Parts Lost 12 | . 3 1 8 Power 2 | . . . 2 Propulsion 3 | . 1 . 2 Utility 3 | . . . 3 Weapon 4 | . 2 1 1 Highest Loss Streak 6 | . 2 1 6 To Critical Strikes . | . . . . Average Backups 8 | . 5 10 13 Power . | . . 1 1 Propulsion 1 | . . 3 4 Utility 3 | . 2 4 6 Weapon 1 | . . 2 2 Tool/Special . | . . . . Unused Backups 17 | . 3 3 11 Power . | . . . . Propulsion 6 | . . . 6 Utility 8 | . 1 3 4 Weapon 2 | . 1 . 1 Tool/Special 1 | . 1 . . Average Slot Usage (%) 93 | . 98 90 79 Engine 10 | . 14 5 3 Core 3 | . . 8 7 Treads 26 | . 27 28 19 Device 8 | . 7 8 10 Storage 13 | . 14 14 11 Processor 4 | . 5 5 . Hackware 1 | . . . 8 Protection 1 | . . . 8 Ballistic Gun 12 | . 13 14 10 Launcher 9 | . 13 5 . Peak Build Rating 22 | 6 8 17 22 Average Rating 10 | 4 7 13 19 On Entrance 7 | . 5 8 17 Avg Prop Armor Cover (%) . | . . . . Naked Turns . | . . . . Heaviest Build 93 | 14 21 88 93 Greatest Support 40 | 40 40 40 40 Greatest Overweight (x) 29 | . . 2 29 Average Overweight (x) . | . . . 2 Largest Inventory Capacity 25 | 8 10 25 25 Average Capacity 12 | 7 9 13 25 Most Carried 16 | . 10 13 16 Average Carried 8 | . 6 10 13 Final Capacity 25 | 8 10 25 25 Final Carried 16 | . 10 13 16 Class Distribution -------------------- 100% | Mutant Dominant Class ---------------- Mutant | -10/Materials Mutant | -10/Mines Mutant | -9/Materials Resources | -11 -10 -10 -9 ----------- Run | Yrd Mat Min Mat Matter Collected 1098 | 233 448 217 200 Remotely . | . . . . Salvage Created 765 | 80 396 82 207 Parts 50 | 1 22 9 18 Haulers Intercepted . | . . . . Recyclers Shooed . | . . . . Parts Field Recycled . | . . . . Retrieved Matter . | . . . . Parts Self-Destructed . | . . . . Prevented . | . . . . Parts Restored . | . . . . Kills | -11 -10 -10 -9 ------- Run | Yrd Mat Min Mat Combat Hostiles Destroyed 26 | . 14 5 7 Guns 15 | . 6 2 7 AOE 11 | . 8 3 . Classes Destroyed 6 | 1 4 . 1 Recycler 2 | 1 1 . . Operator 1 | . 1 . . Watcher 3 | . 3 . . Swarmer 15 | . 9 3 3 Grunt 10 | . 5 2 3 Sentry 1 | . . . 1 Best Kill Streak 3 | 1 3 2 2 Combat Bots Only 3 | . 3 2 2 Max Kills in Single Turn 2 | 1 2 2 1 Gunslinging . | . . . . Exploded 2 | . 2 2 . Melee . | . . . . Uniques/NPCs Destroyed . | . . . . Combat | -11 -10 -10 -9 -------- Run | Yrd Mat Min Mat Hostile Shots Fired 222 | . 98 16 108 Missed 56 | . 25 4 27 Hits 166 | . 73 12 81 Projectile 166 | . 73 12 81 AOE 1 | . . . 1 Critical Strikes 3 | . . . 3 Damage Taken 2067 | . 826 146 1095 Core 549 | . 107 28 414 Absorbed by Shields . | . . . . Core Remaining (%) 73 | 100 . 46 . Volleys Fired 169 | 3 115 11 40 Largest 2 | 2 1 1 1 Hottest 80 | 80 40 30 20 Shots Fired 172 | 6 115 11 40 Gun 157 | 6 105 6 40 Cannon . | . . . . Launcher 15 | . 10 5 . Special . | . . . . Kinetic 147 | . 101 6 40 Thermal 4 | . 4 . . Explosive 15 | . 10 5 . Electromagnetic 6 | 6 . . . Robot Hit Streak 8 | 3 8 4 8 Robot Miss Streak 19 | 1 19 2 2 Penetration Max . | . . . . Secondary Targets . | . . . . Shots Hit Robots 87 | 4 51 6 26 Core Hits 54 | 2 32 9 11 Critical Kills . | . . . . Critical Parts Destroyed . | . . . . Critical Strikes 1 | 1 . . . Corrupt 1 | 1 . . . Melee Attacks . | . . . . Impact . | . . . . Slashing . | . . . . Piercing . | . . . . Sneak Attacks . | . . . . Combat Hostiles . | . . . . Follow-up Attacks . | . . . . Damage Inflicted 1871 | 56 1192 303 320 Guns 955 | 56 526 53 320 Cannons . | . . . . Explosions 916 | . 666 250 . Melee . | . . . . Ramming . | . . . . Kinetic 854 | . 481 53 320 Thermal 45 | . 45 . . Explosive 916 | . 666 250 . Electromagnetic 56 | 56 . . . Impact . | . . . . Slashing . | . . . . Piercing . | . . . . Highest Corruption . | . . . . Average Corruption . | . . . . Corruption Purged . | . . . . Corruption Blocked . | . . . . Overload Shots . | . . . . Overflow Damage 28 | . 28 . . Projectiles . | . . . . Explosions 28 | . 28 . . Melee . | . . . . Knockbacks . | . . . . Impact . | . . . . Kinetic . | . . . . Secondary . | . . . . Self-Inflicted Damage 104 | . 67 37 . Shots 4 | . 3 1 . Rammed . | . . . . Targets Rammed . | . . . . Kicked . | . . . . Crushed . | . . . . Highest Temperature 54 | 54 6 10 6 Average Temperature 13 | 29 5 5 4 Received Heat Transfer 708 | . 306 33 369 Siege Activations . | . . . . Martial Activations . | . . . . Shielding Activations . | . . . . Robots Disrupted . | . . . . Combat Hostiles . | . . . . Robots Corrupted . | . . . . Combat Hostiles . | . . . . Parts Fried 1 | 1 . . . Impact Corruptions . | . . . . Robots Melted . | . . . . Combat Hostiles . | . . . . Parts Melted . | . . . . Heat Transferred 100 | . 100 . . Parts Sabotaged . | . . . . Parts Stolen . | . . . . Parts Stripped . | . . . . Power Chain Reactions . | . . . . Alert | -11 -10 -10 -9 ------- Run | Yrd Mat Min Mat Maximum Alert Level . | . . . . Low Security (%) 100 | 100 100 100 100 Level 1 . | . . . . Level 2 . | . . . . Level 3 . | . . . . Level 4 . | . . . . Level 5 . | . . . . High Security . | . . . . Max Security . | . . . . Peak Influence 185 | 5 98 185 81 Initial . | . . . . Average 30 | . 25 58 17 Influence Increases 920 | 5 459 245 211 Destroy 0b10 Robot/C 580 | . 280 160 140 Destroy 0b10 Robot/NC 35 | 5 25 . 5 Destroy Leader 118 | . 56 30 32 Allied During Kill 15 | . . 15 . Successful Hack 8 | . 4 . 4 Disable Machine 30 | . 15 15 . Destroy Structure 89 | . 64 25 . Lose Combat Pursuer 45 | . 15 . 30 Influence Decreases 920 | 5 459 245 211 Time Decay 824 | 5 430 235 154 Lost Part 69 | . 29 10 30 Lost Ally 27 | . . . 27 Squads Dispatched 2 | . 1 . 1 Investigation . | . . . . Extermination . | . . . . Reinforcement 2 | . 1 . 1 Assault . | . . . . Garrison . | . . . . Intercept . | . . . . Searches Triggered . | . . . . Construction Impeded . | . . . . Haulers Reinforced . | . . . . Active Scanning Responses . | . . . . Cargo Convoy Interrupts . | . . . . Stealth | -11 -10 -10 -9 --------- Run | Yrd Mat Min Mat Distress Signals 6 | . 2 . 4 Communications Jammed . | . . . . Distress Signals . | . . . . Times Spotted 57 | . 34 8 15 Peak Tracking Total 6 | . 6 3 4 Tactical Retreats 3 | . 1 . 2 Traps | -11 -10 -10 -9 ------- Run | Yrd Mat Min Mat Traps Triggered 1 | . 1 . . Indirectly . | . . . . Trap Hack Attempts . | . . . . Triggered . | . . . . Disarmed . | . . . . Reprogrammed . | . . . . Reused . | . . . . Traps Extracted . | . . . . Installed . | . . . . Triggered . | . . . . Machines | -11 -10 -10 -9 ---------- Run | Yrd Mat Min Mat Machines Disabled 2 | . 1 1 . Max in Single Turn 1 | . 1 1 . Machines Repaired . | . . . . Machines Dismantled . | . . . . Machines Sabotaged . | . . . . Overloaded Fab Kills . | . . . . Hacking | -11 -10 -10 -9 --------- Run | Yrd Mat Min Mat Machines Accessed 5 | . 4 . 1 Terminals 4 | . 3 . 1 Fabricators . | . . . . Repair Stations 1 | . 1 . . Recycling Units . | . . . . Scanalyzers . | . . . . Garrison Access . | . . . . Total Hacks 13 | . 9 . 4 Successful 7 | . 5 . 2 Failed 6 | . 4 . 2 Catastrophic . | . . . . Database Lockouts . | . . . . Manual . | . . . . Terminals 12 | . 8 . 4 Fabricators . | . . . . Repair Stations 1 | . 1 . . Recycling Units . | . . . . Scanalyzers . | . . . . Garrison Access . | . . . . Terminal Hacks 6 | . 4 . 2 Record 3 | . 3 . . Terminal Index 1 | . . . 1 Locate Traps 1 | . 1 . . Hauler Manifests 1 | . . . 1 Fabricator Hacks . | . . . . Repair Station Hacks 1 | . 1 . . Scan Component 1 | . 1 . . Recycling Unit Hacks . | . . . . Scanalyzer . | . . . . Garrison Access Hacks . | . . . . Unauthorized Hacks . | . . . . Terminals . | . . . . Fabricators . | . . . . Repair Stations . | . . . . Recycling Units . | . . . . Scanalyzers . | . . . . Garrison Access . | . . . . Data Cores Recovered . | . . . . Used . | . . . . Hacking Detections 1 | . 1 . . Full Trace Events . | . . . . Feedback Events . | . . . . Feedback Blocked . | . . . . Robot Schematics Acquired . | . . . . Robots Built . | . . . . Authchips . | . . . . Time . | . . . . Total Robot Build Rating . | . . . . Part Schematics Acquired . | . . . . Parts Built . | . . . . Authchips . | . . . . Time . | . . . . Total Part Build Rating . | . . . . Part Studies Acquired . | . . . . Parts Repaired . | . . . . Time . | . . . . Parts Recycled . | . . . . Recycled Matter . | . . . . Retrieved Matter . | . . . . Retrieved Components . | . . . . Parts Scanalyzed . | . . . . Part Schematics Acquired . | . . . . Parts Damaged . | . . . . Bothacking | -11 -10 -10 -9 ------------ Run | Yrd Mat Min Mat Used RIF Installer . | . . . . Robots Hacked . | . . . . Non-combat . | . . . . Combat . | . . . . Robot Hacks Applied . | . . . . Relay Couplers Released . | . . . . Fabnet Peak Effective % . | . . . . Robots Rewired . | . . . . Allies Hacked . | . . . . Hacks Repelled . | . . . . Allies | -11 -10 -10 -9 -------- Run | Yrd Mat Min Mat Total Allies 2 | . . 2 . Largest Group 2 | . . 2 2 Highest-Rated Group 42 | . . 42 42 Highest-Rated Ally 31 | . . 31 31 Total Orders . | . . . . Ally Attacks 11 | . . 8 3 Total Damage 168 | . . 126 42 Kills 4 | . . 3 1 Allies Corrupted . | . . . . Allies Melted . | . . . . Intel | -11 -10 -10 -9 ------- Run | Yrd Mat Min Mat Active Infowar (turns) 2471 | . 1314 501 656 Sensors 1157 | . . 501 656 Structural 1314 | . 1314 . . Robot Analysis Total . | . . . . Derelict Logs Recovered . | . . . . Drone Launches . | . . . . Drone Recoveries . | . . . . Exploration | -11 -10 -10 -9 ------------- Run | Yrd Mat Min Mat Turns Passed 3874 | 82 2290 836 666 Spaces Moved 1806 | 42 1173 436 155 Core 7 | 4 . . 3 Treads 1799 | 38 1173 436 152 Legs . | . . . . Wheels . | . . . . Hover . | . . . . Flight . | . . . . Fastest Speed 50 | 50 160 160 320 Average Speed 181 | 149 160 181 351 Slowest Speed 1500 | 160 160 320 1500 Overloaded Moves . | . . . . Propulsion Burnouts . | . . . . Robots Hopped . | . . . . Potential Cave-ins . | . . . . Cave-ins Triggered . | . . . . Exploration Rate (%) 52 | 4 99 88 20 Regions Visited 3 Branch Regions 1 Pre-discovered Areas . | . . . . Known Exits Taken 2 | . 1 1 . Unknown Exits Taken 1 | 1 . . . Scrap Searched 1 | . . 1 . Spaces Dug . | . . . . Terrain Destroyed 96 | . 66 30 . Melee . | . . . . Projectile . | . . . . AOE 96 | . 66 30 . Terrain Rammed . | . . . . Walls Destroyed . | . . . . Machines Disabled . | . . . . Actions | -11 -10 -10 -9 --------- Run | Yrd Mat Min Mat Total 2245 | 53 1479 475 238 Wait 201 | . 154 12 35 Move 1803 | 41 1172 435 155 Hop . | . . . . Pick Up 26 | . 14 7 5 Fast Attach 15 | 7 6 1 1 Attach 2 | . . . 2 Detach . | . . . . Swap 11 | . 9 2 . Drop 18 | 2 9 7 . Fire 169 | 3 115 11 40 Melee . | . . . . Ram . | . . . . Kick . | . . . . Crush . | . . . . Escape Stasis . | . . . . Rewire . | . . . . Trap . | . . . . Miscellaneous . | . . . . Route ------- -11/Scrapyard -10/Materials (discovered 5 exits: *Mat x3 / *Min / *Sub) -10/Mines -9/Materials History --------- Turn | Location | Event 38 | -11/Scrapyard | Discovered new exit (range 16) 83 | -11/Scrapyard | Entered Materials 214 | -10/Materials | Discovered new exit (range 15) 271 | -10/Materials | Discovered new exit (range 15) 317 | -10/Materials | Build established: Mutant 608 | -10/Materials | Discovered new exit (range 10) 1470 | -10/Materials | Discovered new exit (range 8) 1492 | -10/Materials | Identified exit to Materials 1615 | -10/Materials | Discovered new exit (range 7) 1624 | -10/Materials | Identified exit to Subcaves 1672 | -10/Materials | Identified exit to Mines 2373 | -10/Materials | Entered Mines 2668 | -10/Mines | Core integrity fell below 50% 2705 | -10/Mines | Found a damaged Exp. Sensor Array with a note attached 2708 | -10/Mines | Found Prototype Device 2708 | -10/Mines | Identified Exp. Sensor Array 3140 | -10/Mines | Discovered exit to Materials (range 5) 3209 | -10/Mines | Entered Materials 3209 | -9/Materials | Accompanied by 2 allies 3209 | -9/Materials | Evolved 2 slots: Utility x2 3214 | -9/Materials | Led the pair of lost Derelicts to an unsafe place 3850 | -9/Materials | Core integrity fell below 50% 3870 | -9/Materials | Core integrity fell below 20% 3875 | -9/Materials | Destroyed by Y-45 Defender with Beam Rifle Last Messages --------------- R-06 Scavenger collects Lgt. Ion Engine. R-06 Scavenger collects Aluminum Leg. R-06 Scavenger collects Heat Sink. Acquired Flight Unit. Acquired 39 matter. Acquired 11 matter. R-06 Scavenger collects Flight Unit. R-06 Scavenger collects Lgt. Ion Engine. R-06 Scavenger collects Heat Sink. R-06 Scavenger collects Aluminum Leg. W-16 Scout sends out distress signal. Lgt. Treads destroyed. Assault Rifle destroyed. Lgt. Treads destroyed. Lgt. Ion Engine destroyed. Critical hit (Burn: +37). Hrd. Light Armor Plating destroyed. Exp. Sensor Array destroyed. Hacking Suite destroyed. Critical hit (Burn: +37). Map ----- +----------------------------------------------------+ | | | | | | | | | | | | | | | | | | | | | | | | | | | | | | | | | ???????????????????????????????????????????????### | | ???????????????????????????????????????????????# | | ???????????????????????????????????????????????# | | ???????????????????????????????????????????????# | | ??????????????????###??????????????????????????# | | ?????????????????## ?????????????????????????# | | ?????????????????# ""?????????????????????????# | | ??????????????????# "" ????????????????????????# " | | ??????????????????# T" ###########??#??????????# " | | ??????????????????# "" Y @ #?????????# " | | ??????????????????# "" #Y#########?? ????????##### | | ??????????????????# # #??######## +???????# | | ??????????????????# ?# #??# # #???????# | | ??????????????????# ?# #??# T # #??????## | | ??????????????????###??# #??# ! # #??????# | | ???????????????????????# #??# # #??????##![ | | ???????????????????????# #??? # #???????#![ | | ???????????????????????# #????? # #???????# | | ????????????????######## ########+## ###########+# | | ????????? | | ????????????????####### ####/#########/########### | | ??????????????????????# #? ?????? = ?????????? | | ??????????????????????# # #????? ?????????? | | ??????????????????????# # """ #???? #????????? | | ??????????????????????# #= """ #???? #????????? | | ??????????????????????# # """ #???# #????????? | | ??????????????????????# # #???# #????????? | | ??????????????????????# ########???# #????????? | | ??????????????????????# #??????????# #????????? | | ??????????????????????# #??????????# #????????? | | ??????????????????????# #??????????######????????? | | ??????????????????????# #????????????????????????? | | ??????????????????????# #????????????????????????? | | ??????????????????????# #????????????????????????? | +----------------------------------------------------+ Best States ------------- Heat Dissipation 28 Energy Generation 14 Energy Capacity 250 Matter Stores 300 Matter Capacity 300 Sight Range 16 Robot Scan Range 20 Terrain Scan Density 10 Armor Coverage 150 Evasion (%) 40 Recoil Reduction 2 Offensive Hacking 10 Item Schematics ----------------- None Robot Schematics ------------------ None Fabricated ------------ Nothing Repaired ---------- Nothing Studied --------- None Alien Tech Used ----------------- None Achievements -------------- None Challenges ------------ None Game ------ Seed PulsarThrusterMatter Manual? 0 Play Time 00:44:28 Cumulative 3.0 hours Start 2026.08.16 @ 11:16:32 End 2026.08.16 @ 13:57:38 Sessions 3 Manual Loads 0 Difficulty Rogue Special Mode None Game No. 4 Rogue 4 Adventurer 0 Explorer 0 Win Type - Total 0 Types 0/0/0/0/0/0/0/0/0/0 Lore% 1 Gallery% 5 Achievement% 7 Wizard Run 0 Options --------- Layout 0 ASCII 0 Keyboard 0 Movement Numpad Keybinds 0 Fullscreen 2 Font 24/Proggy Map View 76x50 Zoom Use 0% Tactical HUD 0 Map Filters NONE Filters NONE Steam 1 RUN: 8bdf129c-758f-4c6e-b81a-7b23c6618346